bitfinex-derivatives/quotes_SOLF0:USTF0_20260217
["timestamp","ask_amount","ask_price","bid_price","bid_amount"]
[1771339317089,6.04384463,84.25,84.159,12.88075173]
[1771339317293,6.04384463,84.23,84.159,12.88075173]
[1771339317494,6.04384463,84.25,84.171,12.75871888]
[1771339318098,10.6892,84.243,84.183,12.75840602]
[1771339318290,6.04384463,84.26,84.19,6.04384463]
[1771339318493,6.04384463,84.26,84.171,12.78904994]
[1771339318696,6.04384463,84.24,84.171,12.78904994]
[1771339318886,6.04384463,84.26,84.171,12.78904994]
[1771339319297,10.6908,84.231,84.173,12.78904994]
[1771339319494,6.04384463,84.26,84.173,12.78904994]
[1771339320089,6.04384463,84.24,84.173,12.78904994]
[1771339320395,6.04384463,84.25,84.173,12.78904994]
[1771339320592,10.6913,84.227,84.173,12.78904994]
[1771339320806,6.04384463,84.25,84.173,12.78904994]
[1771339320993,74.36,84.281,84.173,12.78904994]
[1771339320994,6.04384463,84.24,84.173,12.78904994]
[1771339321194,10.6913,84.227,84.173,12.78904994]
[1771339321394,6.04384463,84.24,84.173,12.78904994]
[1771339321802,6.04384463,84.26,84.176,12.79458092]
[1771339322004,6.04384463,84.26,84.181,12.79458092]
[1771339322390,10.6907,84.232,84.181,12.79458092]
[1771339323097,10.6907,84.232,84.181,23.49168092]
[1771339323296,6.04384463,84.26,84.18,6.04384463]
[1771339323297,6.04384463,84.26,84.182,12.8282655]
[1771339323498,6.04384463,84.29,84.201,12.82801325]
[1771339323795,10.6853,84.274,84.221,12.82801325]
[1771339324303,10.6853,84.274,84.166,11.76]
[1771339324304,10.6877,84.256,84.202,12.82801325]
[1771339324501,6.04384463,84.29,84.202,12.82801325]
[1771339324704,6.04384463,84.29,84.211,10.6933]
[1771339324904,6.04384463,84.29,84.202,12.82801325]
[1771339325099,6.04384463,84.29,84.21,6.04384463]
[1771339325300,10.6863,84.267,84.214,12.84700633]
[1771339325504,6.04384463,84.29,84.192,12.84700633]
[1771339325705,6.04384463,84.27,84.195,10.6953]
[1771339325910,6.04384463,84.29,84.196,12.84676387]
[1771339326212,6.04384463,84.29,84.149,21.4023]
[1771339326213,6.04384463,84.31,84.235,12.84676387]
[1771339326712,6.04384463,84.32,84.235,12.84676387]
[1771339326910,10.6829,84.293,84.244,12.84883756]
[1771339327217,6.04384463,84.3,84.222,12.84883756]
[1771339327415,10.6848,84.278,84.222,12.84883756]
[1771339327907,6.04384463,84.3,84.222,12.84883756]
[1771339328315,10.6847,84.279,84.222,12.84883756]
[1771339328708,6.04384463,84.28,84.222,12.84883756]
[1771339328912,6.04384463,84.28,84.202,12.85484626]
[1771339328913,10.6879,84.254,84.202,12.85484626]
[1771339329814,10.6879,84.254,84.182,86.86]
[1771339329815,6.04384463,84.3,84.22,6.04384463]
[1771339330018,166.0823,84.342,84.22,6.04384463]
[1771339330019,6.04384463,84.32,84.24,6.04384463]
[1771339330212,10.682,84.301,84.242,12.85461829]
[1771339330412,6.04384463,84.32,84.242,12.85461829]
[1771339331019,10.6846,84.28,84.242,12.85461829]
[1771339331218,6.04384463,84.32,84.242,12.85461829]
[1771339331416,6.04384463,84.32,84.242,10.6892]
[1771339331619,6.04384463,84.34,84.243,12.89511245]
[1771339331920,6.04384463,84.32,84.243,12.89511245]
[1771339332219,6.04384463,84.35,84.261,12.89511245]
[1771339332422,6.04384463,84.35,84.219,35.57]
[1771339332423,6.04384463,84.35,84.281,12.89511245]
[1771339332614,6.04384463,84.35,84.25,6.04384463]
[1771339332615,6.04384463,84.37,84.285,12.84327885]
[1771339333123,6.04384463,84.37,84.25,6.04384463]
[1771339333124,10.674,84.363,84.301,12.84327885]
[1771339333310,6.04384463,84.37,84.301,12.84327885]
[1771339333516,74.38,84.398,84.301,12.84327885]
[1771339333517,6.04384463,84.39,84.301,12.84327885]
[1771339333713,6.04384463,84.4,84.32,6.04384463]
[1771339333910,6.04384463,84.41,84.321,12.84305928]
[1771339334219,10.667,84.419,84.352,12.84305928]
[1771339334521,6.04384463,84.43,84.352,12.84305928]
[1771339334725,6.04384463,84.43,84.3,6.04384463]
[1771339334726,6.04384463,84.41,84.33,12.8115341]
[1771339335025,6.04384463,84.39,84.33,12.8115341]
[1771339335221,6.04384463,84.39,84.301,12.8115341]
[1771339335421,6.04384463,84.39,84.321,12.8115341]
[1771339336717,10.63688598,84.457,84.321,12.8115341]
[1771339336718,10.6708,84.389,84.321,12.8115341]
[1771339336920,6.04384463,84.4,84.321,12.8115341]
[1771339337316,10.6734,84.369,84.321,12.8115341]
[1771339337630,6.04384463,84.38,84.321,12.8115341]
[1771339338017,165.9336,84.418,84.298,12.83010465]
[1771339338018,6.04384463,84.36,84.298,12.83010465]
[1771339338720,10.6763,84.346,84.298,12.83010465]
[1771339339029,6.04384463,84.36,84.298,12.83010465]
[1771339339413,74.38,84.391,84.301,12.84914321]
[1771339339414,6.04384463,84.38,84.301,12.84914321]
[1771339339817,10.6731,84.371,84.302,10.6817]
[1771339340022,6.04384463,84.38,84.303,12.84894223]
[1771339340615,10.6755,84.352,84.303,12.84894223]
[1771339340822,6.04384463,84.4,84.303,12.84894223]
[1771339340823,6.04384463,84.36,84.303,12.84894223]
[1771339341221,10.6777,84.334,84.303,12.84894223]
[1771339341419,6.04384463,84.36,84.303,12.84894223]
[1771339341822,10.6766,84.343,84.303,12.84894223]
[1771339342025,6.04384463,84.36,84.281,12.86572987]
[1771339342720,10.6776,84.335,84.281,12.86572987]
[1771339342920,6.04384463,84.36,84.281,12.86572987]
[1771339343126,6.04384463,84.34,84.281,12.86572987]
[1771339343516,10.6802,84.314,84.281,12.86572987]
[1771339343826,6.04384463,84.34,84.281,12.86572987]
[1771339344225,10.6811,84.308,84.26,6.04384463]
[1771339344423,10.6811,84.308,84.2,6.04384463]
[1771339344424,4.30232921,84.338,84.2,6.04384463]
[1771339344619,4.30232921,84.338,84.26,6.04384463]
[1771339344931,10.6817,84.303,84.24,6.04384463]
[1771339346018,10.6827,84.295,84.24,6.04384463]
[1771339346432,21.3531,84.344,84.237,7.89888419]
[1771339346433,4.33723738,84.299,84.237,7.89888419]
[1771339346626,4.30903117,84.319,84.24,6.04384463]
[1771339346821,6.04384463,84.32,84.243,7.89888419]
[1771339347022,4.30903117,84.319,84.243,7.89888419]
[1771339347418,10.6824,84.297,84.243,7.89888419]
[1771339347626,4.30903117,84.319,84.243,7.89888419]
[1771339347822,6.04384463,84.31,84.243,7.89888419]
[1771339348025,4.32526519,84.309,84.243,7.89888419]
[1771339348724,10.6843,84.282,84.243,7.89888419]
[1771339349225,4.32526519,84.309,84.243,7.89888419]
[1771339350136,10.42077212,84.33,84.243,7.89888419]
[1771339350429,4.37692749,84.329,84.243,7.89888419]
[1771339350826,4.37692749,84.329,84.245,7.89888419]
[1771339350827,10.6812,84.307,84.245,7.89888419]
[1771339351536,4.37692749,84.329,84.261,7.89888419]
[1771339351834,6.04384463,84.35,84.269,7.89888419]
[1771339351835,10.6781,84.331,84.269,7.89888419]
[1771339352029,6.04384463,84.35,84.269,7.89888419]
[1771339352226,4.40632026,84.349,84.281,7.89888419]
[1771339353226,4.40632026,84.349,84.261,7.89888419]
[1771339353424,4.42643661,84.329,84.261,7.89888419]
[1771339353922,10.6809,84.309,84.261,7.89888419]
[1771339354627,10.6818,84.302,84.261,7.89888419]
[1771339355221,4.42643661,84.329,84.261,7.89888419]
[1771339356026,6.04384463,84.29,84.201,7.89888419]
[1771339356526,10.6857,84.271,84.204,7.89888419]
[1771339357130,10.6857,84.271,84.207,7.89888419]
[1771339357539,10.6871,84.261,84.207,7.89888419]
[1771339358320,4.45315895,84.289,84.207,7.89888419]
[1771339358724,6.04384463,84.3,84.19,6.04384463]
[1771339358725,4.46819549,84.261,84.19,6.04384463]
[1771339359024,4.46819549,84.261,84.122,21.83190936]
[1771339359025,4.46819549,84.249,84.161,7.89888419]
[1771339359226,10.6936,84.209,84.161,7.89888419]
[1771339359428,10.51204012,84.23,84.161,7.89888419]
[1771339360134,4.48238183,84.229,84.163,7.89888419]
[1771339360429,6.04384463,84.25,84.1,141.61384463]
[1771339360430,6.04384463,84.21,84.143,7.89888419]
[1771339360637,6.04384463,84.17,84.101,7.89888419]
[1771339360832,6.04384463,84.17,84.1,100.0]
[1771339360833,74.4,84.181,84.1,100.0]
[1771339361035,166.3554,84.204,84.1,100.0]
[1771339361036,166.3705,84.196,84.1,41.3853]
[1771339361231,4.75389236,84.17,84.101,7.89888419]
[1771339361433,8.27822351,84.159,84.1,12.89078419]
[1771339361738,8.27822351,84.119,84.051,2.06840599]
[1771339361927,8.27822351,84.119,84.04,6.04384463]
[1771339362232,6.04384463,84.13,84.02,20.97821016]
[1771339362433,8.27822351,84.141,84.06,6.04384463]
[1771339362633,6.04384463,84.12,84.029,10.7164]
[1771339362937,6.04384463,84.12,84.04,6.04384463]
[1771339362938,8.27822351,84.119,84.04,6.04384463]
[1771339363132,8.27822351,84.119,84.029,10.7164]
[1771339363433,8.27822351,84.119,83.934,21.83190936]
[1771339363434,8.27822351,84.059,83.96,13.94272882]
[1771339363738,6.04384463,84.01,83.898,166.9603]
[1771339363923,6.04384463,84.05,83.951,2.0712498]
[1771339363924,6.07304394,84.05,83.951,2.0712498]
[1771339364124,8.27822351,84.074,83.95,6.07304394]
[1771339364324,6.07304394,84.06,83.98,6.07304394]
[1771339364635,8.63224179,84.046,83.925,2.07181087]
[1771339364834,8.63224179,84.046,83.98,6.07304394]
[1771339365033,6.07304394,84.06,83.98,6.07304394]
[1771339365232,6.07304394,84.06,83.95,6.07304394]
[1771339365233,19.34494179,84.059,83.97,6.07304394]
[1771339365431,8.63224179,84.059,83.964,10.7246]
[1771339365730,8.63224179,84.059,83.981,8.75085481]
[1771339366135,166.5282,84.117,83.991,8.75085481]
[1771339366136,8.63224179,84.08,83.991,8.75085481]
[1771339366338,166.4872,84.137,84.011,8.75085481]
[1771339366339,6.07304394,84.1,84.011,8.75085481]
[1771339366532,10.7084,84.093,84.011,8.75085481]
[1771339367126,8.63224179,84.069,83.99,6.07304394]
[1771339367343,8.63224179,84.03,83.963,8.75085481]
[1771339367531,6.07304394,84.04,83.971,8.75085481]
[1771339367730,8.63224179,84.051,83.9,177.08097585]
[1771339368034,8.63224179,84.022,83.901,8.75085481]
[1771339368233,6.07304394,83.97,83.901,8.75085481]
[1771339368426,8.63224179,83.989,83.911,8.75085481]
[1771339368625,6.07304394,84.0,83.839,10.7407]
[1771339368626,8.63224179,83.945,83.839,10.7407]
[1771339368831,8.63224179,83.945,83.86,6.07304394]
[1771339369032,8.63224179,83.945,83.81,167.1347]
[1771339369033,8.63224179,83.969,83.9,6.07304394]
[1771339369233,6.07304394,84.0,83.879,85.76]
[1771339369435,6.07304394,83.95,83.801,167.1525]
[1771339369637,6.07304394,83.95,83.87,16.80974394]
[1771339369937,6.07304394,83.97,83.88,6.07304394]
[1771339370133,6.07304394,83.95,83.789,344.51883611]
[1771339370333,166.7905,83.984,83.87,6.07304394]
[1771339370334,6.07304394,83.96,83.87,6.07304394]
[1771339370530,6.07304394,83.96,83.871,6.74436653]
[1771339370733,10.7264,83.951,83.871,6.74436653]
[1771339371032,8.63224179,83.969,83.881,6.77373469]
[1771339371433,6.07304394,83.99,83.901,6.77373469]
[1771339371736,6.07304394,83.97,83.901,6.77373469]
[1771339371927,8.62965779,83.969,83.901,6.77373469]
[1771339372937,10.7248,83.964,83.901,6.77373469]
[1771339373144,19.35445779,83.964,83.901,6.77373469]
[1771339373431,8.62965779,83.964,83.901,6.77373469]
[1771339373833,8.62965779,83.964,83.877,7.64389041]
[1771339373834,6.07304394,83.96,83.877,7.64389041]
[1771339374038,8.62965779,83.943,83.877,7.64389041]
[1771339374237,6.07304394,83.95,83.877,7.64389041]
[1771339374440,10.7256,83.958,83.877,7.64389041]
[1771339374637,8.62965779,83.967,83.881,7.60943754]
[1771339375529,8.62965779,83.967,83.9,6.07304394]
[1771339375738,8.62965779,83.967,83.89,13.71014204]
[1771339375929,8.62965779,83.967,83.891,7.6370981]
[1771339376447,6.07304394,83.98,83.891,7.6370981]
[1771339376633,8.62965779,83.989,83.911,7.68776004]
[1771339376836,14.70270173,84.01,83.921,7.68776004]
[1771339377136,8.62965779,84.009,83.921,7.68776004]
[1771339377337,14.70270173,84.03,83.941,7.68776004]
[1771339377641,8.62965779,84.03,83.961,7.68776004]
[1771339377839,10.7183,84.015,83.961,7.68776004]
[1771339378236,8.62965779,84.03,83.961,7.68776004]
[1771339378430,10.7181,84.016,83.95,6.07304394]
[1771339378635,19.34775779,84.016,83.95,6.07304394]
[1771339378831,8.62965779,84.016,83.95,6.07304394]
[1771339379234,6.07304394,84.03,83.951,7.74120214]
[1771339379437,14.70270173,84.03,83.951,7.74120214]
[1771339379741,499.2332,84.176,83.929,10.7291]
[1771339379742,8.62965779,84.019,83.93,6.07304394]
[1771339379939,8.62965779,84.019,83.931,7.76785449]
[1771339380245,8.62965779,84.029,83.931,7.76785449]
[1771339380446,8.62965779,84.009,83.931,7.76785449]
[1771339380643,10.7198,84.003,83.931,7.76785449]
[1771339380838,19.34945779,84.003,83.931,7.76785449]
[1771339381230,6.07304394,84.01,83.931,7.76785449]
[1771339381231,10.7221,83.985,83.931,7.76785449]
[1771339381436,8.62965779,84.002,83.931,7.76785449]
[1771339381930,8.62965779,84.024,83.931,7.76785449]
[1771339382333,8.62965779,84.009,83.931,7.76785449]
[1771339382640,10.721,83.993,83.931,7.76785449]
[1771339382831,6.07304394,83.99,83.931,7.76785449]
[1771339383030,8.62965779,84.009,83.931,7.76785449]
[1771339384438,8.62965779,84.009,83.907,85.72]
[1771339384439,10.7189,84.01,83.941,8.30369875]
[1771339384638,10.7189,84.01,83.9,6.07304394]
[1771339384639,8.62965779,84.049,83.961,8.35123119]
[1771339384842,10.7168,84.027,83.961,8.35123119]
[1771339385141,10.7168,84.027,83.942,10.7275]
[1771339385142,8.62965779,84.009,83.939,8.35123119]
[1771339385742,10.7197,84.004,83.939,8.35123119]
[1771339386242,10.7197,84.004,83.921,85.72]
[1771339386243,8.62965779,84.03,83.951,8.37679038]
[1771339387248,8.62965779,84.03,83.95,6.07304394]
[1771339387249,8.62965779,84.019,83.95,6.07304394]
[1771339387448,10.7216,83.989,83.93,13.9683163]
[1771339387744,8.62965779,83.997,83.93,13.9683163]
[1771339388449,8.62965779,83.989,83.911,7.91960603]
[1771339389343,10.7228,83.979,83.911,7.91960603]
[1771339389745,8.62965779,83.989,83.911,7.91960603]
[1771339389944,10.7232,83.977,83.911,7.91960603]
[1771339390145,10.7232,83.977,83.912,7.95675424]
[1771339390542,10.7244,83.967,83.912,7.95675424]
[1771339390951,10.7258,83.956,83.9,14.0736371]
[1771339391145,10.7258,83.956,83.9,8.00059316]
[1771339391340,6.07304394,83.99,83.911,8.00059316]
[1771339391549,10.7229,83.979,83.911,8.00059316]
[1771339391946,8.62965779,83.989,83.911,8.00059316]
[1771339392148,8.62965779,83.989,83.825,167.1062]
[1771339392149,8.62965779,83.955,83.882,8.02383919]
[1771339392652,8.62965779,83.969,83.901,7.93589098]
[1771339392952,8.62965779,83.969,83.901,7.95830019]
[1771339393452,6.07304394,83.99,83.921,7.95830019]
[1771339393647,8.62965779,83.989,83.921,7.95830019]
[1771339393851,10.723,83.978,83.921,7.95830019]
[1771339394252,8.62965779,83.989,83.921,7.95830019]
[1771339394454,9.16691503,83.969,83.892,85.7]
[1771339394650,9.16691503,83.969,83.87,6.07304394]
[1771339394851,9.16691503,83.969,83.91,6.07304394]
[1771339395258,10.7243,83.968,83.91,6.07304394]
[1771339396458,10.7243,83.968,83.901,0.04335557]
[1771339397363,10.7255,83.958,83.901,0.04335557]
[1771339397560,10.7255,83.958,83.879,35.57]
[1771339397561,9.16691503,83.969,83.88,6.07304394]
[1771339397954,10.7277,83.941,83.88,6.07304394]
[1771339398155,6.07304394,83.95,83.87,6.07304394]
[1771339398356,9.16691503,83.969,83.89,6.07304394]
[1771339398853,9.16691503,83.969,83.871,85.54]
[1771339398854,10.7273,83.944,83.88,16.80844394]
[1771339399060,10.7273,83.944,83.881,85.62]
[1771339399572,6.07304394,83.95,83.88,6.07304394]
[1771339399750,6.07304394,83.95,83.851,35.57]
[1771339399751,9.3205127,83.949,83.869,85.62]
[1771339400261,9.3205127,83.949,83.86,16.81094394]
[1771339400460,9.3205127,83.949,83.88,6.07304394]
[1771339400958,9.3205127,83.949,83.864,0.02101501]
[1771339401158,6.07304394,83.95,83.864,0.02101501]
[1771339401159,9.2674967,83.929,83.864,0.02101501]
[1771339401361,9.2674967,83.929,83.844,0.04671397]
[1771339401560,10.7339,83.893,83.844,0.04671397]
[1771339401956,9.26744035,83.909,83.844,0.04671397]
[1771339403158,10.7325,83.904,83.844,0.04671397]
[1771339403469,6.07304394,83.95,83.871,0.92155132]
[1771339403658,8.99517673,83.949,83.871,0.92155132]
[1771339403864,8.99517673,83.949,83.881,0.94779582]
[1771339404459,10.7282,83.938,83.881,0.94779582]
[1771339404663,8.99517673,83.969,83.9,6.07304394]
[1771339404963,6.07304394,83.97,83.85,41.64304394]
[1771339404964,8.99517673,83.965,83.88,6.07304394]
[1771339405170,8.99517673,83.929,83.86,7.02962466]
[1771339405359,8.99517673,83.929,83.86,0.95658072]
[1771339405561,10.7333,83.897,83.84,0.9577602]
[1771339405756,15.06822067,83.91,83.84,0.9577602]
[1771339405967,15.06822067,83.89,83.82,0.98226178]
[1771339406167,8.99517673,83.89,83.83,6.07304394]
[1771339406565,8.99517673,83.91,83.831,1.1313587]
[1771339406763,8.99517673,83.91,83.837,1.15557201]
[1771339407363,10.7329,83.9,83.837,1.15557201]
[1771339407566,6.07304394,83.92,83.851,1.18086132]
[1771339407872,8.99517673,83.929,83.851,1.18086132]
[1771339408266,8.99517673,83.909,83.83,6.07304394]
[1771339408469,8.99517673,83.909,83.826,1.18086132]
[1771339408771,8.99517673,83.909,83.789,177.34063611]
[1771339408772,10.7323,83.905,83.842,1.1975266]
[1771339409066,6.07304394,83.93,83.851,1.1975266]
[1771339409067,8.99517673,83.93,83.851,1.1975266]
[1771339409775,10.7321,83.907,83.851,1.1975266]
[1771339410169,10.7321,83.907,83.775,188.86715652]
[1771339410170,8.99517673,83.899,83.829,1.22219607]
[1771339410366,8.99517673,83.899,83.84,10.7405]
[1771339410566,8.99517673,83.899,83.829,1.22219607]
[1771339410866,8.99517673,83.899,83.831,1.16441535]
[1771339411067,8.99517673,83.899,83.819,85.28]
[1771339411068,6.07304394,83.87,83.807,1.16441535]
[1771339411268,15.06822067,83.87,83.807,1.16441535]
[1771339411570,8.99517673,83.87,83.807,1.16441535]
[1771339411866,6.07304394,83.88,83.788,2.07534455]
[1771339411867,8.99517673,83.859,83.788,1.1884137]
[1771339412066,10.7352,83.882,83.809,1.1884137]
[1771339412266,8.99517673,83.881,83.809,1.1884137]
[1771339412675,6.07304394,83.86,83.789,0.97202462]
[1771339412864,15.06822067,83.87,83.8,6.07304394]
[1771339413273,8.99517673,83.87,83.8,6.07304394]
[1771339413477,8.99517673,83.87,83.79,6.07304394]
[1771339413970,6.07304394,83.88,83.807,0.99502459]
[1771339414271,6.07304394,83.85,83.785,0.99502459]
[1771339414476,8.99517673,83.869,83.79,6.07304394]
[1771339414670,8.99517673,83.869,83.807,0.59930395]
[1771339415069,8.99517673,83.869,83.81,0.59930395]
[1771339415269,15.23059398,83.88,83.811,0.59930395]
[1771339415473,166.8403,83.959,83.811,0.59930395]
[1771339415474,6.07304394,83.89,83.811,0.59930395]
[1771339415670,9.15737557,83.879,83.811,0.59930395]
[1771339416072,9.15737557,83.93,83.811,0.59930395]
[1771339416272,9.15737557,83.897,83.813,0.62143415]
[1771339416972,9.15737557,83.897,83.757,297.0]
[1771339416973,8.99517673,83.859,83.758,0.55738243]
[1771339417174,166.9657,83.896,83.761,9.12878408]
[1771339417175,8.99517673,83.839,83.761,9.12878408]
[1771339417368,19.73607673,83.838,83.771,9.12878408]
[1771339417568,166.9814,83.888,83.75,6.07304394]
[1771339417569,8.99517673,83.829,83.751,9.12878408]
[1771339418080,8.99517673,83.825,83.752,10.7519]
[1771339418376,8.99517673,83.825,83.728,85.14]
[1771339418377,8.99517673,83.809,83.721,9.12878408]
[1771339418577,8.99517673,83.809,83.744,10.7528]
[1771339418768,8.99517673,83.809,83.74,9.12878408]
[1771339418968,8.99517673,83.819,83.731,9.12878408]
[1771339419168,19.73997673,83.808,83.733,9.12878408]
[1771339419772,8.99517673,83.808,83.735,9.12878408]
[1771339420475,8.99517673,83.808,83.737,9.12878408]
[1771339420682,8.99517673,83.828,83.751,9.12878408]
[1771339421067,8.99517673,83.828,83.76,6.07304394]
[1771339421269,8.99517673,83.819,83.751,9.12878408]
[1771339421468,8.99517673,83.817,83.751,9.12878408]
[1771339421675,8.99517673,83.817,83.74,6.07304394]
[1771339422081,10.7451,83.806,83.74,6.07304394]
[1771339422277,8.99517673,83.809,83.74,6.07304394]
[1771339422478,8.99517673,83.809,83.73,9.12878408]
[1771339422780,8.99517673,83.809,83.686,167.3838]
[1771339422781,8.99517673,83.789,83.709,9.12878408]
[1771339422984,8.99517673,83.789,83.72,6.07304394]
[1771339423484,8.99517673,83.787,83.72,6.07304394]
[1771339423983,8.99517673,83.787,83.724,10.7554]
[1771339424279,8.99517673,83.787,83.71,6.07304394]
[1771339424482,8.99517673,83.787,83.711,9.39456152]
[1771339424782,8.99517673,83.787,83.717,10.7564]
[1771339424978,8.99517673,83.787,83.711,9.39456152]
[1771339425282,10.7488,83.776,83.711,9.39456152]
[1771339425484,8.99517673,83.787,83.711,9.39456152]
[1771339425779,8.99517673,83.787,83.73,6.07304394]
[1771339425979,10.7456,83.801,83.732,10.7544]
[1771339426282,6.1073109,83.85,83.73,15.50187242]
[1771339426283,9.53979241,83.807,83.733,9.39456152]
[1771339426674,10.7461,83.797,83.733,9.39456152]
[1771339426874,9.53979241,83.796,83.733,9.39456152]
[1771339427377,10.7465,83.794,83.734,10.7541]
[1771339427580,9.53979241,83.793,83.713,9.39456152]
[1771339428283,9.53979241,83.778,83.713,20.15146152]
[1771339428685,9.53979241,83.778,83.713,9.39456152]
[1771339429081,9.53979241,83.778,83.723,10.7555]
[1771339429476,9.53979241,83.778,83.713,9.39456152]
[1771339429679,9.53979241,83.799,83.721,9.39456152]
[1771339429878,9.53979241,83.799,83.711,9.39456152]
[1771339430081,9.53979241,83.799,83.73,6.1073109]
[1771339430278,9.53979241,83.799,83.731,9.39456152]
[1771339430674,9.53979241,83.799,83.756,10.7513]
[1771339430873,9.53979241,83.799,83.731,9.39456152]
[1771339431189,9.53979241,83.799,83.711,9.39456152]
[1771339431384,9.53979241,83.797,83.711,9.39456152]
[1771339431780,8.90938141,83.795,83.711,9.39456152]
[1771339432485,8.90938141,83.795,83.699,85.06]
[1771339432486,8.90938141,83.795,83.746,10.7525]
[1771339432688,8.90938141,83.795,83.731,9.44512164]
[1771339432885,8.90938141,83.819,83.731,9.44512164]
[1771339433290,8.90938141,83.803,83.744,10.7528]
[1771339433791,8.90938141,83.799,83.744,10.7528]
[1771339433988,8.90938141,83.799,83.731,9.44512164]
[1771339433989,8.90938141,83.798,83.735,10.754]
[1771339434383,8.90938141,83.798,83.731,9.44512164]
[1771339435077,8.90938141,83.798,83.72,6.1073109]
[1771339435384,8.90938141,83.798,83.721,9.44512164]
[1771339435581,8.90938141,83.796,83.744,10.7528]
[1771339436289,8.90938141,83.793,83.736,10.7539]
[1771339436492,8.90938141,83.809,83.736,9.44512164]
[1771339436687,8.90938141,83.806,83.736,9.44512164]
[1771339436882,8.90938141,83.789,83.717,9.44512164]
[1771339437788,167.0722,83.843,83.704,9.44512164]
[1771339437789,6.1073109,83.77,83.704,9.44512164]
[1771339437994,15.01669231,83.77,83.704,9.44512164]
[1771339438884,8.90938141,83.769,83.704,9.44512164]
[1771339439093,8.90938141,83.769,83.685,9.44512164]
[1771339439588,6.1073109,83.8,83.658,2.0783316]
[1771339439589,6.1073109,83.76,83.658,2.0783316]
[1771339439789,8.90938141,83.759,83.697,9.44512164]
[1771339439996,6.1073109,83.8,83.659,9.44512164]
[1771339439997,8.90938141,83.739,83.659,9.44512164]
[1771339440290,8.90938141,83.739,83.642,297.0]
[1771339440291,8.90938141,83.759,83.688,9.44512164]
[1771339440591,8.90938141,83.759,83.691,9.44512164]
[1771339440885,8.90938141,83.758,83.691,9.44512164]
[1771339441096,6.1073109,83.78,83.691,9.44512164]
[1771339441389,10.7462,83.797,83.722,20.20082164]
[1771339441698,6.1073109,83.8,83.722,9.44512164]
[1771339442187,74.56,83.842,83.722,9.44512164]
[1771339442388,6.1073109,83.83,83.741,9.44512164]
[1771339442583,10.7426,83.825,83.747,20.19752164]
[1771339442781,6.1073109,83.84,83.748,9.44512164]
[1771339442984,8.54143022,83.866,83.751,9.44512164]
[1771339443193,167.0122,83.873,83.751,9.44512164]
[1771339443194,7.4098874,83.82,83.751,9.44512164]
[1771339443394,6.1073109,83.85,83.751,9.44512164]
[1771339443687,7.4098874,83.849,83.79,6.1073109]
[1771339443887,6.1073109,83.87,83.791,9.44512164]
[1771339443888,7.44200228,83.87,83.791,9.44512164]
[1771339444090,7.44200228,83.87,83.81,6.1073109]
[1771339444285,253.53660388,83.89,83.811,9.44512164]
[1771339444486,7.44200228,83.889,83.811,9.44512164]
[1771339444686,10.24477317,83.958,83.8,6.1073109]
[1771339444687,7.41451835,83.915,83.831,9.44512164]
[1771339445388,7.41451835,83.915,83.8,6.1073109]
[1771339445389,7.41451835,83.929,83.85,6.1073109]
[1771339445592,7.41451835,83.929,83.87,6.1073109]
[1771339445788,7.41451835,83.929,83.851,9.44512164]
[1771339445994,7.44590821,83.927,83.852,9.44512164]
[1771339446190,7.44590821,83.927,83.87,6.1073109]
[1771339446383,6.1073109,83.95,83.84,6.1073109]
[1771339446384,7.44590821,83.925,83.84,6.1073109]
[1771339446788,6.1073109,83.91,83.84,6.1073109]
[1771339446999,7.80584009,83.889,83.808,9.44512164]
[1771339447293,7.80584009,83.889,83.81,6.1073109]
[1771339447495,7.80584009,83.889,83.811,10.7443]
[1771339447794,7.80584009,83.889,83.812,9.44512164]
[1771339447994,7.80584009,83.889,83.831,10.7416]
[1771339448188,7.80584009,83.889,83.83,6.1073109]
[1771339448390,7.83705676,83.909,83.831,9.44512164]
[1771339448591,7.92145953,83.874,83.809,9.44512164]
[1771339448889,74.58,83.927,83.809,9.44512164]
[1771339448890,7.92145953,83.904,83.809,9.44512164]
[1771339449096,7.92145953,83.904,83.821,9.44512164]
[1771339449290,7.92145953,83.904,83.827,10.7422]
[1771339449689,7.95197939,83.895,83.82,6.1073109]
[1771339449891,166.8964,83.931,83.8,6.1073109]
[1771339449892,7.95197939,83.879,83.8,6.1073109]
[1771339450297,7.95197939,83.879,83.801,10.7455]
[1771339450495,6.1073109,83.9,83.801,9.44512164]
[1771339450697,8.14827497,83.899,83.801,9.44512164]
[1771339450988,8.14827497,83.897,83.801,9.44512164]
[1771339451400,8.14827497,83.891,83.805,10.745]
[1771339451586,8.14827497,83.891,83.82,6.1073109]
[1771339452393,8.14827497,83.891,83.821,9.44512164]
[1771339452595,8.14827497,83.891,83.822,9.44512164]
[1771339452896,6.1073109,83.86,83.781,9.44512164]
[1771339453091,6.1073109,83.86,83.793,10.7465]
[1771339453284,8.21159922,83.879,83.794,9.44512164]
[1771339453491,10.7358,83.878,83.799,10.7457]
[1771339453692,8.21103821,83.877,83.794,9.44512164]